bitfinex-derivatives/quotes_ETHF0:USTF0_20241008
["timestamp","ask_amount","ask_price","bid_price","bid_amount"]
[1728398854854,0.41166,2430.1,2429.6,0.41173]
[1728398855149,4.37514,2430.2,2429.7,4.36]
[1728398855352,3.9635,2430.2,2429.7,5.1109]
[1728398855551,0.41165,2430.1,2429.7,5.1109]
[1728398855756,0.7557,2430.2,2430.1,0.41164]
[1728398855955,0.8049,2430.3,2430.2,0.41163]
[1728398856144,3.2078,2430.5,2430.4,0.41159]
[1728398856343,3.61938,2430.5,2430.2,0.41161]
[1728398856547,3.2078,2430.5,2430.4,0.41159]
[1728398856952,0.41148,2431.1,2430.4,13.3222]
[1728398857159,0.41144,2431.3,2430.9,0.4115]
[1728398857353,1.0286,2431.4,2430.7,3.2078]
[1728398857548,4.23641,2431.3,2430.4,7.4920263]
[1728398857748,4.98641,2431.3,2430.8,0.41152]
[1728398857947,0.4115,2431.0,2430.4,4.23677]
[1728398858155,0.4115,2431.0,2430.7,0.41153]
[1728398858355,4.98641,2431.3,2430.4,3.2078]
[1728398858548,4.98641,2431.3,2430.4,0.59963921]
[1728398858549,0.7888,2430.9,2430.4,0.59963921]
[1728398858745,1.20031,2430.9,2430.3,1.02903]
[1728398858954,0.7888,2430.9,2430.4,4.23679]
[1728398859150,0.7888,2430.9,2430.7,0.41154]
[1728398859457,0.7888,2430.9,2430.4,3.2078]
[1728398859661,0.41158,2430.5,2430.2,1.77237668]
[1728398859954,0.754,2430.8,2430.2,1.36075668]
[1728398860156,1.16554,2430.8,2430.5,0.41157]
[1728398860360,0.41155,2430.7,2430.5,0.41157]
[1728398860559,0.754,2430.8,2430.2,2.38981668]
[1728398860756,0.754,2430.8,2430.6,0.41155]
[1728398860952,3.2078,2430.9,2430.4,3.2078]
[1728398861253,3.2078,2430.9,2430.8,0.41153]
[1728398862950,0.754,2431.0,2430.9,0.41151]
[1728398863561,1.5771,2432.0,2431.6,0.41139]
[1728398863861,1.5771,2432.0,2431.3,4.36]
[1728398864164,1.98844,2432.0,2431.5,3.2078]
[1728398864464,1.5771,2432.0,2431.2,3.2078]
[1728398864651,0.41136,2431.8,2431.5,0.4114]
[1728398864852,1.98843,2432.0,2431.7,0.41137]
[1728398865358,0.41134,2431.9,2431.6,0.41138]
[1728398865565,1.5771,2432.0,2431.2,3.2078]
[1728398865755,1.5771,2432.0,2431.3,0.6065003]
[1728398865961,0.41143,2431.4,2431.2,3.2078]
[1728398866650,0.41144,2431.3,2431.2,3.2078]
[1728398866854,1.17364,2431.3,2431.2,3.2078]
[1728398867055,4.875,2431.3,2431.2,3.2078]
[1728398867361,5.28644,2431.3,2431.0,0.41148]
[1728398867658,0.7622,2431.3,2431.0,0.41148]
[1728398867958,1.17365,2431.3,2431.0,0.41148]
[1728398868165,0.7622,2431.3,2431.1,0.41147]
[1728398868455,1.17365,2431.3,2430.8,7.5678]
[1728398868663,0.7622,2431.3,2431.1,0.41147]
[1728398870162,0.7622,2431.3,2431.2,0.41146]
[1728398870556,0.7622,2431.3,2430.8,7.5678]
[1728398870956,0.7622,2431.3,2431.2,0.41146]
[1728398871664,0.7522,2431.5,2431.3,0.41143]
[1728398871956,0.7522,2431.5,2431.4,0.41142]
[1728398872560,4.865,2431.5,2431.1,0.8161]
[1728398872759,0.41143,2431.4,2431.2,0.41145]
[1728398873061,0.7522,2431.5,2431.1,0.8161]
[1728398873264,0.41145,2431.3,2431.1,0.41147]
[1728398873560,0.7522,2431.5,2430.8,8.59661]
[1728398873763,0.7522,2431.5,2430.9,1.02877]
[1728398874264,0.7522,2431.5,2431.1,0.41147]
[1728398874265,0.41145,2431.3,2431.1,0.41147]
[1728398874759,3.96,2431.5,2431.0,1.02873]
[1728398874760,0.7522,2431.5,2431.0,1.02873]
[1728398874968,0.7522,2431.5,2430.8,8.5966]
[1728398875356,0.41144,2431.4,2431.1,0.41146]
[1728398875558,0.7522,2431.5,2431.1,0.41146]
[1728398875869,0.41145,2431.3,2431.1,0.41146]
[1728398876363,0.41143,2431.4,2431.2,0.41145]
[1728398876562,3.2078,2431.6,2431.1,0.41147]
[1728398876860,4.71653911,2432.8,2431.1,0.41147]
[1728398876861,1.02773,2433.4,2432.0,1.02829]
[1728398877062,0.41116,2433.0,2432.6,3.2078]
[1728398877258,0.41122,2432.6,2432.3,3.2078]
[1728398877461,0.41123,2432.6,2432.3,3.2078]
[1728398877659,1.18284,2432.5,2432.0,3.61912]
[1728398877969,1.18284,2432.5,2432.0,3.2078]
[1728398877970,1.18276,2432.4,2432.0,3.2078]
[1728398878167,0.7715,2432.4,2432.0,3.2078]
[1728398878369,0.7715,2432.4,2431.9,0.41134]
[1728398878666,1.18277,2432.4,2431.7,8.17089419]
[1728398878964,0.7715,2432.4,2431.7,8.17089419]
[1728398879467,0.41127,2432.3,2431.7,7.97916]
[1728398879868,0.7715,2432.4,2431.7,7.5678]
[1728398880071,0.41128,2432.3,2431.7,7.5678]
[1728398880256,0.7715,2432.4,2431.7,7.5678]
[1728398880667,0.41127,2432.3,2431.8,0.41135]
[1728398880969,0.7711,2432.3,2431.9,0.41133]
[1728398881167,0.7715,2432.4,2432.3,0.41127]
[1728398881470,0.7715,2432.4,2432.3,3.61907]
[1728398881659,0.7715,2432.4,2432.3,3.2078]
[1728398881860,0.7715,2432.4,2432.3,3.61907]
[1728398882264,0.7715,2432.4,2432.3,3.2078]
[1728398882457,0.7715,2432.4,2432.1,0.4113]
[1728398882458,4.8827,2432.4,2432.1,0.4113]
[1728398882659,0.7715,2432.4,2432.0,3.2078]
[1728398882862,0.7711,2432.9,2432.0,3.2078]
[1728398882863,11.13,2432.8,2432.2,1.4395]
[1728398883072,11.8944,2432.8,2432.3,3.2078]
[1728398883369,11.8944,2432.8,2432.7,0.4112]
[1728398883567,7.17559,2432.8,2432.5,0.41123]
[1728398883762,0.7644,2432.8,2432.7,0.4112]
[1728398883962,0.7644,2432.8,2432.3,3.2078]
[1728398884362,1.17559,2432.8,2432.5,0.41123]
[1728398884858,4.1104,2432.7,2432.3,3.2078]
[1728398885061,0.7644,2432.8,2432.5,0.41123]
[1728398885261,0.7644,2432.8,2432.6,0.41121]
[1728398885567,1.17559,2432.8,2432.6,0.41122]
[1728398885766,4.1104,2432.7,2432.5,0.41123]
[1728398885969,0.41121,2432.7,2432.4,0.41124]
[1728398886167,0.7644,2432.8,2432.1,4.36]
[1728398886378,0.41127,2432.4,2432.1,0.41129]
[1728398886671,2.70838,2432.3,2432.1,0.4113]
[1728398886866,0.41129,2432.2,2431.6,3.2078]
[1728398887059,11.13,2432.2,2431.4,0.8045]
[1728398887262,11.13,2432.2,2431.3,3.2078]
[1728398887463,11.13,2432.2,2431.7,4.36]
[1728398887767,11.13,2432.2,2432.1,0.41131]
[1728398887962,2.2971,2432.3,2432.2,0.41129]
[1728398888466,12.4083,2432.3,2431.7,5.38843]
[1728398888771,2.2971,2432.3,2431.7,5.38843]
[1728398888960,2.2971,2432.3,2432.2,0.41129]
[1728398889163,2.70837,2432.3,2432.1,0.4113]
[1728398889360,2.70837,2432.3,2431.6,3.2078]
[1728398889361,0.41133,2432.0,2431.9,0.41134]
[1728398889568,0.41131,2432.1,2432.0,0.41132]
[1728398889770,2.2971,2432.3,2432.2,0.41129]
[1728398889973,0.41129,2432.2,2432.1,0.4113]
[1728398890171,2.2971,2432.3,2431.7,4.36]
[1728398890371,2.2971,2432.3,2431.6,3.2078]
[1728398890372,0.41137,2431.8,2431.6,3.2078]
[1728398890666,1.02833,2432.0,2431.6,3.2078]
[1728398890875,1.23837,2431.7,2431.6,0.41138]
[1728398891060,0.827,2431.7,2431.6,0.41138]
[1728398891266,0.827,2431.7,2431.3,3.2078]
[1728398891267,4.9398,2431.7,2431.3,3.2078]
[1728398891470,0.827,2431.7,2431.2,4.36]
[1728398891770,0.827,2431.7,2431.6,0.41139]
[1728398891967,0.827,2431.7,2431.5,0.4114]
[1728398891968,1.23837,2431.7,2431.5,0.4114]
[1728398892173,0.827,2431.7,2431.0,3.2078]
[1728398892473,0.41143,2431.4,2431.3,0.41144]
[1728398892771,0.41143,2431.4,2431.0,3.2078]
[1728398892975,0.41142,2431.5,2431.0,3.2078]
[1728398893167,0.7542,2431.6,2431.0,3.2078]
[1728398893474,0.7542,2431.6,2431.5,0.41141]
[1728398893863,0.41142,2431.5,2431.3,0.41143]
[1728398894067,0.7542,2431.6,2431.1,1.02869]
[1728398894477,1.7827,2431.6,2431.0,3.2078]
[1728398894674,1.02853,2431.5,2431.1,0.41146]
[1728398894876,11.8842,2431.6,2431.3,0.41143]
[1728398895072,11.8842,2431.6,2431.5,0.41141]
[1728398895273,0.827,2431.7,2431.6,0.41139]
[1728398895671,4.9398,2431.7,2431.1,5.174]
[1728398895872,0.41139,2431.6,2431.5,0.4114]
[1728398896076,0.827,2431.7,2431.2,0.41146]
[1728398896473,0.4114,2431.6,2431.5,0.4114]
[1728398896674,0.41139,2431.6,2431.5,0.4114]
[1728398896875,4.52419,2431.6,2431.5,0.4114]
[1728398897077,4.1128,2431.6,2431.5,0.4114]
[1728398897273,1.23838,2431.7,2431.5,0.4114]
[1728398897478,0.827,2431.7,2431.6,0.41139]
[1728398897977,4.9398,2431.7,2431.5,4.36]
[1728398898283,4.9398,2431.7,2431.6,0.41139]
[1728398898284,0.827,2431.7,2431.6,0.41139]
[1728398898681,4.9398,2431.7,2431.6,0.41139]
[1728398899282,3.2078,2431.9,2431.5,4.36]
[1728398899489,16.29313,2432.5,2432.2,0.41129]
[1728398899490,0.8278,2432.3,2432.2,0.41129]
[1728398899978,4.939,2432.3,2432.2,0.41129]
[1728398901078,4.939,2432.3,2431.8,4.36]
[1728398901273,0.8278,2432.3,2432.1,0.41129]
[1728398901481,1.23907,2432.3,2432.1,0.41129]
[1728398902086,0.8278,2432.3,2432.2,0.41129]
[1728398902277,1.23908,2432.3,2432.1,0.4113]
[1728398902483,0.8278,2432.3,2432.2,0.41129]
[1728398902689,1.23908,2432.3,2432.1,0.4113]
[1728398902989,0.8278,2432.3,2431.8,4.36]
[1728398903185,0.8278,2432.3,2431.5,4.36]
[1728398903388,0.41131,2432.1,2431.5,0.4114]
[1728398903689,0.41137,2431.8,2431.5,0.4114]
[1728398903986,0.41138,2431.7,2431.3,3.80275561]
[1728398904183,0.4114,2431.6,2431.4,0.41142]
[1728398904381,0.41138,2431.7,2431.5,0.4114]
[1728398904582,0.41139,2431.6,2431.4,0.41141]
[1728398904983,1.02841,2431.8,2431.2,5.1808]
[1728398905179,0.8216,2431.5,2431.2,5.1808]
[1728398905391,0.8216,2431.5,2431.1,0.41146]
[1728398905392,0.41144,2431.3,2431.1,0.41146]
[1728398905789,0.8216,2431.5,2431.0,3.2078]
[1728398906088,11.13,2431.8,2431.3,3.2078]
[1728398906289,0.8216,2432.2,2431.6,4.36]
[1728398906586,0.8216,2432.2,2431.6,7.5678]
[1728398906784,0.8216,2432.2,2431.7,1.02844]
[1728398906981,0.8216,2432.2,2431.6,7.5678]
[1728398906982,1.2329,2432.2,2432.0,0.41131]
[1728398907389,5.3449,2432.2,2432.0,0.41131]
[1728398907591,5.3449,2432.2,2431.7,1.02844]
[1728398907786,1.2329,2432.2,2431.7,1.02844]
[1728398907988,1.2329,2432.2,2432.0,0.41131]
[1728398908292,0.8216,2432.2,2431.7,1.02844]
[1728398908590,0.8216,2432.2,2432.1,0.41131]
[1728398908791,5.34409,2432.2,2432.1,0.41131]
[1728398908993,4.9328,2432.2,2432.1,0.41131]
[1728398909587,5.34409,2432.2,2432.1,0.41131]
[1728398910092,10.9328,2432.2,2431.6,3.2078]
[1728398910394,0.41137,2431.7,2431.6,3.2078]
[1728398910590,0.41137,2431.7,2431.6,3.61919]
[1728398911088,1.22486,2431.8,2431.7,0.41137]
[1728398911488,5.33686,2431.8,2431.7,0.41137]
[1728398911691,4.112,2431.8,2431.7,0.41137]
[1728398911896,0.41134,2431.9,2431.8,0.41135]
[1728398912101,0.41137,2431.8,2431.7,0.41137]
[1728398912294,5.14037,2431.9,2431.1,3.2078]
[1728398912599,1.02847,2431.7,2431.1,4.0204]
[1728398912893,1.02854,2431.5,2431.1,3.2078]
[1728398913095,2.62092,2431.6,2431.3,0.41144]
[1728398913303,11.13,2431.9,2431.1,3.2078]
[1728398913594,0.41139,2431.7,2431.5,0.4114]
[1728398913792,1.0284,2431.8,2431.1,3.2078]
[1728398913993,0.41139,2431.6,2431.2,0.41146]
[1728398914194,0.41139,2431.6,2431.1,4.23649]
[1728398914398,0.41141,2431.5,2431.3,0.41143]
[1728398914599,0.41143,2431.4,2431.1,3.2078]
[1728398914795,0.41143,2431.4,2431.2,0.41145]
[1728398914993,0.41145,2431.3,2431.1,3.61927]
[1728398915596,0.41146,2431.2,2431.1,3.2078]
[1728398915895,0.41149,2431.1,2430.9,0.4115]
[1728398916398,0.41149,2431.1,2430.8,4.0204]
[1728398916399,0.41147,2431.2,2430.8,4.0204]
[1728398916602,0.7887,2431.4,2430.8,4.0204]
[1728398916801,12.15843,2431.8,2431.1,3.2078]
[1728398917003,12.7194,2431.8,2431.1,3.2078]
[1728398917207,0.4114,2431.6,2431.4,0.41142]
[1728398917404,0.41144,2431.4,2431.2,0.41145]
[1728398917606,3.2078,2431.6,2430.8,4.0204]
[1728398917808,0.41145,2431.3,2431.1,0.41147]
[1728398918008,1.02858,2431.4,2430.8,5.04922]
[1728398918211,0.41146,2431.3,2431.1,0.41147]
[1728398918707,11.13,2431.5,2431.1,3.2078]
[1728398918915,11.13,2431.5,2431.3,0.41144]
[1728398918916,11.54142,2431.5,2431.3,0.41144]
[1728398919105,11.54141,2431.5,2431.3,0.41143]
[1728398919605,4.1128,2431.4,2430.8,8.3804]
[1728398919806,0.41149,2431.1,2430.9,0.4115]
[1728398920108,0.4115,2431.0,2430.8,1.22412]
[1728398920305,1.02865,2431.2,2430.2,3.6395]
[1728398920306,11.9346,2431.2,2430.2,3.6395]
[1728398920505,11.9346,2431.2,2430.2,3.9596]
[1728398920506,3.2078,2430.9,2430.2,3.9596]
[1728398920809,0.41155,2430.7,2430.5,0.41157]
[1728398921505,0.41156,2430.6,2430.5,0.41157]
[1728398921912,0.41156,2430.6,2430.4,0.41158]
[1728398922109,0.7632,2430.8,2430.2,3.9596]
[1728398922309,0.4116,2430.4,2430.2,4.37121]
[1728398922607,1.02892,2430.6,2430.2,0.41161]
[1728398922813,0.7754,2430.5,2429.9,4.23699]
[1728398923013,0.7754,2430.5,2430.4,0.41159]
[1728398923312,11.13,2430.7,2430.2,3.2078]
[1728398923514,3.2078,2430.9,2430.4,1.02899]
[1728398923821,6.61809448,2432.1,2430.8,7.5678]
[1728398924117,7.39143012,2433.1,2432.2,0.41129]
[1728398924309,2.8256513,2432.8,2432.1,4.36]
[1728398924508,2.8256513,2432.8,2432.7,3.2078]
[1728398925519,0.8009,2433.5,2432.7,17.6782]
[1728398925723,0.8009,2433.5,2433.4,3.2078]
[1728398926021,0.8009,2433.5,2433.1,3.2078]
[1728398926213,2.8256513,2433.2,2433.1,3.2078]
[1728398926816,3.2078,2433.3,2432.5,0.3821487]
[1728398927018,3.2078,2433.3,2432.0,7.5678]
[1728398927019,0.41115,2433.1,2432.0,7.5678]
[1728398927219,0.41115,2433.1,2432.1,0.4113]
[1728398927523,0.7478,2433.0,2432.3,0.41127]
[1728398927728,0.7478,2433.0,2432.0,7.5678]
[1728398927729,0.7478,2433.0,2432.2,0.41128]
[1728398927910,0.7478,2433.0,2432.0,7.5678]
[1728398928118,0.7478,2433.0,2432.4,0.41125]
[1728398928628,0.7478,2433.0,2432.0,7.5678]
[1728398928928,0.7478,2433.0,2432.4,0.41125]
[1728398929118,0.7478,2433.0,2432.4,3.61905]
[1728398929313,0.7478,2433.0,2432.6,0.41122]
[1728398929923,0.7478,2433.0,2432.7,0.4112]
[1728398930421,4.1104,2432.9,2432.7,0.4112]
[1728398930724,4.1104,2432.9,2432.5,0.41124]
[1728398931024,4.1104,2432.9,2431.9,0.771]
[1728398931025,0.41121,2432.7,2432.2,0.41129]
[1728398931226,3.2078,2432.7,2432.3,0.41127]
[1728398931426,3.2078,2432.7,2432.4,0.41125]
[1728398931727,3.2078,2432.7,2432.0,3.2078]
[1728398932024,14.3378,2432.7,2432.0,3.2078]
[1728398932424,14.3378,2432.7,2432.4,0.41125]
[1728398932819,4.52243,2432.6,2432.2,0.41128]
[1728398933118,14.3378,2432.7,2432.0,3.2078]
[1728398933320,14.74901,2432.7,2432.3,0.41126]
[1728398933520,14.3378,2432.7,2432.4,0.41124]
[1728398933725,14.74902,2432.7,2432.0,3.2078]
[1728398933927,14.74902,2432.7,2432.4,0.41125]
[1728398934127,14.74902,2432.7,2432.3,0.41126]
[1728398934315,14.3378,2432.7,2432.0,3.2078]
[1728398934517,11.13,2432.7,2432.6,0.41122]
[1728398934812,11.8778,2433.0,2432.1,1.02827]
[1728398935018,12.28897,2433.0,2432.7,0.4112]
[1728398935218,0.41117,2432.9,2432.6,0.41122]
[1728398935420,11.8778,2433.0,2432.2,1.02823]
[1728398935727,11.8778,2433.0,2432.1,1.02827]
[1728398935927,11.8778,2433.0,2432.0,7.5678]
[1728398935928,11.8778,2433.0,2432.3,1.02819]
[1728398936131,0.7478,2433.0,2432.4,3.2078]
[1728398936327,0.7478,2433.0,2432.9,0.41117]
[1728398937223,0.7478,2433.0,2432.8,0.41117]
[1728398937423,0.7478,2433.0,2432.9,0.41117]
[1728398937629,0.7478,2433.0,2432.8,0.41118]
[1728398937927,0.7478,2433.0,2432.4,3.9569]
[1728398938133,0.7478,2433.0,2432.8,0.41118]
[1728398938324,1.15896,2433.0,2432.7,0.41119]
[1728398938827,0.7478,2433.0,2432.8,0.41118]
[1728398939230,0.7478,2433.0,2432.7,0.4112]
[1728398939231,5.26936,2433.0,2432.7,0.4112]
[1728398939432,1.15897,2433.0,2432.7,0.4112]
[1728398940328,1.15896,2433.0,2432.7,0.41119]
[1728398940635,0.41117,2432.9,2432.7,0.4112]
[1728398940834,0.41118,2432.9,2432.7,0.4112]
[1728398941028,1.15896,2433.0,2432.7,0.4112]
[1728398941230,0.41117,2432.9,2432.7,0.4112]
[1728398941528,0.41112,2433.2,2433.0,0.41115]
[1728398941731,0.7509,2433.3,2432.9,0.41116]
[1728398941929,0.7509,2433.3,2432.4,3.9569]
[1728398942125,0.41118,2432.9,2432.5,0.41124]
[1728398942326,1.77868,2433.3,2432.4,3.9569]
[1728398942528,0.7509,2433.3,2432.4,3.9569]
[1728398942723,0.41114,2433.1,2432.8,0.41118]
[1728398942926,0.7509,2433.3,2432.5,0.41124]
[1728398943125,1.16202,2433.3,2432.6,1.02805]
[1728398943433,0.7509,2433.3,2432.7,3.2078]
[1728398943634,0.7509,2433.3,2433.2,0.41112]
[1728398944133,14.74884,2433.7,2433.1,3.2078]
[1728398944332,0.7509,2433.8,2433.2,1.0278]
[1728398944526,0.41101,2433.9,2433.7,0.41104]
[1728398944730,3.978,2434.0,2433.4,3.2078]
[1728398945032,2.05407,2435.1,2433.9,5.3875]
[1728398945033,1.02709,2434.9,2433.9,5.3875]
[1728398945237,0.7473,2435.0,2434.3,3.2078]
[1728398945533,0.41088,2434.7,2434.3,3.61872]
[1728398945732,0.7473,2435.0,2434.3,0.41092]
[1728398945733,0.41083,2434.9,2434.3,0.41092]
[1728398945935,1.02709,2434.9,2434.2,4.36]
[1728398946133,0.41091,2434.5,2434.2,0.41095]
[1728398946438,0.41093,2434.4,2434.0,4.38678]
[1728398946634,1.15823,2434.4,2434.0,4.38677]
[1728398946831,1.15823,2434.4,2434.1,0.41096]
[1728398947024,0.7473,2434.4,2434.1,0.41096]
[1728398947226,11.13,2435.0,2434.2,8.468]
[1728398947539,0.41084,2434.9,2434.6,0.41088]
[1728398947925,3.2078,2434.9,2434.3,3.2078]
[1728398948128,0.41088,2434.7,2434.0,0.768]
[1728398948332,3.2078,2434.9,2434.0,0.768]
[1728398948529,0.7752,2434.6,2434.0,0.768]
[1728398948731,3.2078,2434.9,2434.1,3.2078]
[1728398948732,4.23491,2434.9,2434.1,3.2078]
[1728398948934,0.41085,2434.8,2434.5,0.41089]
[1728398949127,3.2078,2434.9,2434.3,0.41092]
[1728398949337,0.41087,2434.7,2434.4,0.41092]
[1728398949532,3.2078,2434.9,2434.4,0.41092]
[1728398949729,4.23491,2434.9,2434.1,3.2078]
[1728398949928,0.41087,2434.7,2434.4,0.41091]
[1728398950128,0.41085,2434.8,2434.4,0.4109]
[1728398950431,3.2078,2434.9,2434.1,4.23521]
[1728398950626,3.2078,2434.9,2434.3,1.02734]
[1728398950831,3.2078,2434.9,2434.7,0.41086]
[1728398951035,3.2078,2434.9,2434.4,3.2078]
[1728398951235,3.2078,2434.9,2434.8,0.41085]
[1728398951430,3.2078,2434.9,2434.4,4.23509]
[1728398951431,3.983,2435.2,2434.5,0.7941]
[1728398951626,0.41083,2435.0,2434.7,0.41086]
[1728398951831,0.41085,2434.8,2434.6,0.41088]
[1728398952034,4.23465,2435.5,2434.6,1.02722]
[1728398952231,3.2078,2435.5,2434.7,3.2078]
[1728398952433,0.41079,2435.2,2434.9,0.41082]
[1728398952834,0.8093,2435.3,2434.7,3.2078]
[1728398953030,3.2078,2435.1,2434.7,3.2078]
[1728398953334,0.41091,2434.5,2434.3,3.2078]
[1728398953534,4.23495,2434.8,2434.3,3.61873]
[1728398953535,0.41089,2434.6,2434.3,3.61873]
[1728398953833,0.8093,2434.7,2434.3,3.2078]
[1728398954640,0.41089,2434.6,2434.3,3.61873]
[1728398954939,11.13,2435.1,2434.3,3.61873]
[1728398954940,0.8306,2435.2,2434.5,4.36]
[1728398955137,0.8306,2435.2,2434.9,3.2078]
[1728398955338,0.4108,2435.1,2434.7,0.41085]
[1728398955539,0.8306,2435.2,2434.6,3.2078]
[1728398955840,0.41075,2435.4,2434.7,1.02716]
[1728398956044,0.41077,2435.3,2435.0,0.41081]
[1728398956245,0.41076,2435.4,2435.1,0.41079]
[1728398956542,0.8058,2435.5,2434.8,4.36]
[1728398956938,0.41075,2435.4,2435.1,0.4108]
[1728398957142,0.8058,2435.5,2434.9,0.7502]
[1728398957442,0.8058,2435.5,2434.9,3.958]
[1728398957648,0.8058,2435.5,2435.3,0.41076]
[1728398957948,0.8058,2435.5,2435.1,0.41079]
[1728398957949,0.41076,2435.4,2435.1,0.41079]
[1728398958239,1.02664,2436.0,2435.2,3.2078]
[1728398958436,0.4107,2435.7,2435.2,3.2078]
[1728398958638,0.4107,2435.7,2435.4,0.41074]
[1728398958836,1.83894,2436.0,2435.2,3.2078]
[1728398959039,3.2078,2435.8,2435.0,1.02705]
[1728398959240,3.2078,2435.8,2434.9,3.958]
[1728398959241,0.41074,2435.5,2435.2,0.41077]
[1728398959539,1.02677,2435.7,2434.9,3.958]
[1728398959741,1.0268,2435.6,2434.9,3.958]
[1728398959937,0.41078,2435.2,2434.9,3.958]
[1728398960245,0.41076,2435.4,2435.1,0.41079]
[1728398960436,1.81061,2436.1,2435.1,4.36]
[1728398960637,1.02673,2435.8,2435.2,0.41078]
[1728398960841,3.2078,2435.8,2434.9,3.958]
[1728398961041,0.41072,2435.6,2435.3,0.41076]
[1728398961249,3.2078,2435.8,2434.9,4.98508]
[1728398961250,0.41071,2435.7,2435.4,0.41074]
[1728398961549,1.02669,2435.9,2434.9,3.2078]
[1728398961550,1.02693,2435.3,2434.9,3.2078]
[1728398961745,1.6201,2435.2,2434.9,3.2078]
[1728398961937,2.03089,2435.2,2434.9,3.2078]
[1728398962138,0.41081,2435.1,2434.9,3.2078]
[1728398962643,1.6201,2435.2,2434.9,3.2078]
[1728398962838,0.41081,2435.1,2434.9,3.61863]
[1728398963237,1.6201,2435.2,2434.9,3.2078]
[1728398963441,0.41087,2434.7,2434.5,3.61869]
[1728398963747,7.3142,2435.1,2434.0,4.58126546]
[1728398963748,0.41089,2434.6,2434.0,4.58126546]
[1728398963946,1.02711,2434.9,2434.0,4.58126546]
[1728398963947,0.41087,2434.7,2434.4,0.4109]
[1728398964243,0.41087,2434.7,2434.5,0.4109]
[1728398964444,0.41087,2434.7,2434.4,0.41091]
[1728398964644,0.41086,2434.8,2434.5,0.41088]
[1728398964844,11.13,2435.0,2434.1,1.02743]
[1728398965142,11.13,2435.0,2434.2,1.02738]
[1728398965344,11.13,2435.0,2434.3,3.2078]
[1728398965640,0.41085,2434.8,2434.6,0.41088]
[1728398965843,0.41088,2434.7,2434.4,0.4109]
[1728398966035,0.4109,2434.6,2434.2,4.36]
[1728398966235,0.4109,2434.6,2434.4,0.41091]
[1728398966437,11.13,2435.0,2434.2,4.36]
[1728398966640,0.41086,2434.8,2434.2,5.38738]
[1728398966849,0.41086,2434.8,2434.6,0.41088]
[1728398967048,0.41085,2434.9,2434.6,0.41088]
[1728398967256,12.15706,2435.0,2434.6,0.41088]
[1728398967548,12.15706,2435.0,2434.3,3.2078]
[1728398967549,11.13,2435.0,2434.3,3.2078]
[1728398967849,0.41083,2434.9,2434.6,0.41087]
[1728398968052,0.41085,2434.9,2434.6,0.41087]
[1728398968253,11.13,2435.0,2434.6,0.41088]
[1728398968254,0.41085,2434.8,2434.6,0.41088]
[1728398968648,0.41085,2434.8,2434.5,0.41088]
[1728398968849,0.41085,2434.8,2434.3,3.2078]
[1728398968850,0.41085,2434.8,2434.6,0.41088]
[1728398969850,0.41089,2434.6,2434.4,0.41091]
[1728398970057,1.02711,2434.9,2434.3,3.2078]
[1728398970650,0.8351,2435.0,2434.3,3.2078]
[1728398970651,1.86216,2435.0,2434.3,3.2078]
[1728398970853,0.41086,2434.8,2434.6,0.41088]
[1728398971057,1.86216,2435.0,2434.3,3.2078]
[1728398971251,0.41086,2434.8,2434.6,0.41088]
[1728398971457,0.41085,2434.9,2434.6,0.41088]
[1728398971749,0.8351,2435.0,2434.7,0.41086]
[1728398972060,0.41083,2435.0,2434.7,0.41086]
[1728398972249,0.41083,2435.0,2434.8,0.41084]
[1728398972444,0.41083,2435.0,2434.4,1.0273]
[1728398972445,3.2078,2435.1,2434.4,1.0273]
[1728398972654,3.2078,2435.1,2434.3,3.2078]
[1728398972655,3.2078,2435.1,2434.6,4.23502]
[1728398972954,3.2078,2435.1,2435.0,0.41082]
[1728398973551,3.2078,2435.1,2434.6,3.9813]
[1728398973750,1.02705,2435.0,2434.6,3.2078]
[1728398973948,3.2078,2435.1,2434.6,3.2078]
[1728398974158,0.41086,2434.8,2434.6,3.2078]
[1728398974349,1.02719,2434.7,2434.3,3.2078]
[1728398974655,0.8095,2434.7,2434.3,3.2078]
[1728398975160,1.22037,2434.7,2434.5,0.41088]
[1728398975356,0.8095,2434.7,2434.3,3.2078]
[1728398975561,0.41095,2434.3,2434.1,0.41096]
[1728398975751,0.41095,2434.3,2434.0,0.41097]
[1728398975956,0.7931,2434.5,2433.9,4.23528]
[1728398976259,0.41092,2434.4,2434.2,0.41094]
[1728398976458,0.8095,2434.7,2434.1,4.36]
[1728398976753,0.7931,2435.0,2434.6,0.41088]
[1728398976956,0.7931,2435.0,2434.9,0.41083]
[1728398977953,0.8012,2435.5,2434.9,4.1072]
[1728398978153,1.5895,2435.5,2435.2,0.41077]
[1728398978355,1.5895,2435.5,2435.0,1.02705]
[1728398978553,1.5895,2435.5,2435.4,0.41075]
[1728398979059,2.00024,2435.5,2435.1,3.2078]
[1728398979458,1.5895,2435.5,2435.3,0.41075]
[1728398979658,1.5895,2435.5,2435.4,0.41075]
[1728398980058,1.5895,2435.5,2435.1,3.2078]
[1728398980258,2.00024,2435.5,2435.3,0.41077]
[1728398980461,0.7775,2435.5,2435.4,0.41075]
[1728398980669,0.7775,2435.5,2435.3,0.41075]
[1728398980864,1.18825,2435.5,2435.2,0.41078]
[1728398981063,0.7775,2435.5,2435.1,3.2078]